{"text_format":"1","workbook":"xlsx","n_sheets":3,"sheets":["InterA1","Papier","Pilotage"],"not_rendered":{"charts":0,"images":0,"macros":1,"external_links":0,"defined_names":22,"comments":0,"pivot_tables":0},"unopened":[],"bounds":{"document_bytes":16777216,"sheet_cells":100000,"rows_first":2000,"rows_last":500,"rows_between":2000,"halvings":0,"cell_chars":16384,"cell_head_chars":4096},"cells_cut":0,"cells_raw":0,"read":"whole","date_system":"1900"}

{"sheet":"InterA1","index":0,"n_rows":51,"n_cols":18,"rows_kept":51,"cut":false,"hidden":false,"merged":[[0,17,0,19],[3,17,3,18]]}
["RANG","JOUEUR","TRS","PJ","IPS","FP","% VIC","DIFF","ERO","EC","TVP","Équipe",null,null,"Bernard Fiset","$B$3",null,"Indiquez votre nom dans la case Personne sondée.\nDéléguez cinq joueurs qui ne font pas partie de votre équipe à qui vous feriez confiance pour faire partie du comité de cotation. \n\nTrier les joueurs du plus fort (1er rang) au plus faible (dernier rang).\n- Sélectionnez un joueur dans la liste.\n- Pour le monter, utilisez la combinaison de touche CTRL+H ou bouton +.\n- Pour le descendre, utilisez la combinaison de touche CTRL+B ou bouton -."]
[null,1,2,3,4,5,6,7,8,9,10,11]
[1,"Bernard Fiset",{"$f":"VLOOKUP($B3,PIL_STAT,C$2,FALSE)","v":50},56,608,"6.89","66.1",118,6,1,6,"Les Cobayes"]
[2,"Normand Paquin",{"$f":"VLOOKUP($B4,PIL_STAT,C$2,FALSE)","v":50},72,687,"7.30","73.6",218,5,4,7,"Publicité Idée Concept",null,null,"Personne sondée",null,null,"Proposition de comité"]
[3,"Simon Robitaille (50)",50,72,680,"7.28","75.0",240,7,1,9,"Team Vegas",null,null,null,null,null,"Joueur #1"]
[4,"Éric Rousseau",60,72,516,"6.04","55.6",43,3,3,3,"Les Chokeux",null,null,null,null,null,"Joueur #2"]
[5,"Marc Godin",60,72,605,"6.83","62.5",152,9,1,9,"Les Cabochons",null,null,null,null,null,"Joueur #3"]
[6,"Pierre-Paul Tremblay",60,72,567,"6.41","56.9",88,8,3,8,"Les Vikings",null,null,null,null,null,"Joueur #4"]
[7,"André L'Hérault",70,72,448,"5.41","47.2",-26,3,2,3,"Les Téteux de boss",null,null,null,null,null,"Joueur #5"]
[8,"Carl Rancourt",70,64,539,"6.18","56.3",51,3,3,3,"Cemwelnex"]
[9,"Claude Martin",70,72,418,"5.11","44.4",-54,3,1,3,"Les Fatiguants"]
[10,"Franck Tremblay",70,48,453,"5.46","52.1",9,1,0,1,"Les Sultans"]
[11,"Gilles Rousseau",70,40,481,"5.70","50.0",-4,2,2,2,"Les Sultans"]
[12,"Guy Savoie",70,72,559,"6.43","59.7",88,8,2,8,"Les Sultans"]
[13,"Jean Fiset",70,72,518,"5.94","58.3",58,1,2,1,"Les Cobayes"]
[14,"Jean Morency (Tapis Vert)",70,72,574,"6.51","58.3",77,5,6,5,"Les Cabochons"]
[15,"Jean Poulin",70,72,428,"5.12","43.1",-46,0,3,1,"Team Vegas"]
[16,"Jean-Gabriel Pelletier",70,72,508,"5.97","54.2",21,3,4,3,"Les Fatiguants"]
[17,"Jocelyn Cauchon",70,24,263,"3.67","20.8",-75,0,1,0,"Les Sultans"]
[18,"Jocelyn Desrosiers",70,72,531,"6.13","61.1",75,3,1,3,"Les Téteux de boss"]
[19,"Marc-André Giguère",70,72,447,"5.29","48.6",-26,1,1,2,"Les Téteux de boss"]
[20,"Marcel Couture",70,72,452,"5.46","48.6",-23,4,2,4,"Les Vikings"]
[21,"Mario Brochu",70,48,395,"4.94","33.3",-90,1,6,1,"Les Chokeux"]
[22,"Mario Couture",70,72,421,"5.19","43.1",-41,4,2,4,"Les Vikings"]
[23,"Martin Villeneuve",70,72,458,"5.45","50.0",1,3,1,3,"Les Bizarres"]
[24,"Mathieu Marcotte",70,72,596,"6.72","63.9",142,6,3,6,"Les Pas Sortables"]
[25,"Nelson Biron",70,64,464,"5.60","51.6",-4,2,2,2,"Les Chokeux"]
[26,"Nicolas Girard",70,72,538,"6.22","51.4",{"$f":"VLOOKUP($B28,PIL_STAT,H$2,FALSE)","v":49},6,5,6,"Les Téteux de boss"]
[27,"Pierre Létourneau",{"$f":"VLOOKUP($B29,PIL_STAT,C$2,FALSE)","v":70},72,394,"4.87","40.3",-100,0,5,0,"Les Sultans"]
[28,"René Hamel",70,72,614,"6.90","65.3",120,8,4,8,"Les Pas Sortables"]
[29,"Simon Marcotte",70,72,451,"5.36","48.6",-32,1,3,1,"Publicité Idée Concept"]
[30,"Stéphane Desroches",70,72,437,"5.19","47.2",-24,1,2,1,"Cemwelnex"]
[31,"Stéphane Fiset",70,72,642,"6.90","70.8",191,6,0,9,"Les Cobayes"]
[32,"Alain Gilbert",80,64,435,"5.24","43.8",-44,1,3,1,"Les Vikings"]
[33,"Danny Georges",{"$f":"VLOOKUP($B35,PIL_STAT,C$2,FALSE)","v":80},72,482,"5.64","52.8",8,0,5,0,"Les Cabochons"]
[34,"Frédéric Dubois",80,64,472,"5.55","51.6",22,3,0,3,"Les Bizarres"]
[35,"James Poulin",80,56,390,"4.85","41.1",-66,1,1,2,"Les Cabochons"]
[36,"Jean-Philippe Ross",80,64,379,"4.91","37.5",-105,4,3,4,"Les Fatiguants"]
[37,"Jocelyn Laperrière",80,72,522,"5.96","58.3",78,2,1,2,"Publicité Idée Concept"]
[38,"Martin Rousseau",80,56,497,"5.83","50.0",-11,2,5,2,"Les Chokeux"]
[39,"Mathieu Barnabé",80,64,424,"5.15","45.3",-37,2,1,2,"Cemwelnex"]
[40,"Pascal Gravel",80,72,494,"5.80","58.3",8,1,4,1,"Les Fatiguants"]
[41,"Raymond Girard",80,72,390,"4.93","40.3",-101,1,5,1,"Team Vegas"]
[42,"Robert Maheux",80,72,390,"4.82","40.3",-96,0,4,1,"Team Vegas"]
[43,"Sébastien Dussault",80,72,423,"5.10","43.1",-63,1,5,1,"Les Pas Sortables"]
[44,"Yohann Fecteau",80,56,342,"4.45","32.1",-123,0,5,0,"Les Bizarres"]
[45,"Carl Bilodeau (St-Nic)",90,48,332,"4.35","31.3",-101,0,2,0,"Les Bizarres"]
[46,"Jean-François Huard",90,64,307,"4.19","28.1",-156,1,2,1,"Cemwelnex"]
[47,"Marie-Noël Naud",90,72,408,"5.10","40.3",-94,2,5,2,"Les Pas Sortables"]
[48,"Stéphane Laperrière",90,72,278,"3.90","23.6",-208,0,3,0,"Publicité Idée Concept"]
[49,"Stéphane Turcotte",{"$f":"VLOOKUP($B51,PIL_STAT,C$2,FALSE)","v":90},72,398,"4.92","43.1",-60,1,1,1,"Les Cobayes"]

{"sheet":"Papier","index":1,"n_rows":50,"n_cols":6,"rows_kept":50,"cut":false,"hidden":false,"merged":[[2,1,6,2]]}
[null,"Indiquez votre nom dans la case Personne sondée.",null,null,"Joueur","Rang 1 à 49"]
[null,null,null,null,"Alain Gilbert"]
[null,"Déléguez cinq joueurs qui ne font pas partie de votre équipe à qui vous feriez confiance pour faire partie du comité de cotation. ",null,null,"André L'Hérault"]
[null,null,null,null,"Bernard Fiset"]
[null,null,null,null,"Carl Bilodeau (St-Nic)"]
[null,null,null,null,"Carl Rancourt"]
[null,null,null,null,"Claude Martin"]
[null,"Personne sondée",null,null,"Danny Georges"]
[null,null,null,null,"Éric Rousseau"]
[null,null,null,null,"Franck Tremblay"]
[null,"Joueur #1",null,null,"Frédéric Dubois"]
[null,null,null,null,"Gilles Rousseau"]
[null,"Joueur #2",null,null,"Guy Savoie"]
[null,null,null,null,"James Poulin"]
[null,"Joueur #3",null,null,"Jean Fiset"]
[null,null,null,null,"Jean Morency (Tapis Vert)"]
[null,"Joueur #4",null,null,"Jean Poulin"]
[null,null,null,null,"Jean-François Huard"]
[null,"Joueur #5",null,null,"Jean-Gabriel Pelletier"]
[null,null,null,null,"Jean-Philippe Ross"]
[null,null,null,null,"Jocelyn Cauchon"]
[null,null,null,null,"Jocelyn Desrosiers"]
[null,null,null,null,"Jocelyn Laperrière"]
[null,null,null,null,"Marc Godin"]
[null,null,null,null,"Marc-André Giguère"]
[null,null,null,null,"Marcel Couture"]
[null,null,null,null,"Marie-Noël Naud"]
[null,null,null,null,"Mario Brochu"]
[null,null,null,null,"Mario Couture"]
[null,null,null,null,"Martin Rousseau"]
[null,null,null,null,"Martin Villeneuve"]
[null,null,null,null,"Mathieu Barnabé"]
[null,null,null,null,"Mathieu Marcotte"]
[null,null,null,null,"Nelson Biron"]
[null,null,null,null,"Nicolas Girard"]
[null,null,null,null,"Normand Paquin"]
[null,null,null,null,"Pascal Gravel"]
[null,null,null,null,"Pierre Létourneau"]
[null,null,null,null,"Pierre-Paul Tremblay"]
[null,null,null,null,"Raymond Girard"]
[null,null,null,null,"René Hamel"]
[null,null,null,null,"Robert Maheux"]
[null,null,null,null,"Sébastien Dussault"]
[null,null,null,null,"Simon Marcotte"]
[null,null,null,null,"Simon Robitaille (50)"]
[null,null,null,null,"Stéphane Desroches"]
[null,null,null,null,"Stéphane Fiset"]
[null,null,null,null,"Stéphane Laperrière"]
[null,null,null,null,"Stéphane Turcotte"]
[null,null,null,null,"Yohann Fecteau"]

{"sheet":"Pilotage","index":2,"n_rows":106,"n_cols":14,"rows_kept":106,"cut":false,"hidden":true,"merged":[[3,0,3,11]]}
["SheetChange",null,null,null,null,"Version",null,null,null,null,"Fichier vierge",null,null,"Nom Fichier"]
[true,null,null,null,null,14,null,null,null,null,true,null,null,"Cotation_VIERGE_InterA1"]
[]
["CLASSEMENT"]
["Joueur","TRS","PJ","IPS","FP","% VIC","DIFF","ERO","EC","TVP","Équipe","Statut"]
["Bernard Fiset",50,56,608,"6.89","66.1",118,6,1,6,"Les Cobayes",{"$f":"IF(K6=\"Substitut\",\"S\",\"R\")","v":"R"}]
["Normand Paquin",50,72,687,"7.30","73.6",218,5,4,7,"Publicité Idée Concept","R"]
["Simon Robitaille (50)",50,72,680,"7.28","75.0",240,7,1,9,"Team Vegas","R"]
["Éric Rousseau",60,72,516,"6.04","55.6",43,3,3,3,"Les Chokeux","R"]
["Marc Godin",60,72,605,"6.83","62.5",152,9,1,9,"Les Cabochons","R"]
["Pierre-Paul Tremblay",60,72,567,"6.41","56.9",88,8,3,8,"Les Vikings","R"]
["André L'Hérault",70,72,448,"5.41","47.2",-26,3,2,3,"Les Téteux de boss","R"]
["Carl Rancourt",70,64,539,"6.18","56.3",51,3,3,3,"Cemwelnex","R"]
["Claude Martin",70,72,418,"5.11","44.4",-54,3,1,3,"Les Fatiguants","R"]
["Franck Tremblay",70,48,453,"5.46","52.1",9,1,0,1,"Les Sultans","R"]
["Gilles Rousseau",70,40,481,"5.70","50.0",-4,2,2,2,"Les Sultans","R"]
["Guy Savoie",70,72,559,"6.43","59.7",88,8,2,8,"Les Sultans","R"]
["Jean Fiset",70,72,518,"5.94","58.3",58,1,2,1,"Les Cobayes","R"]
["Jean Morency (Tapis Vert)",70,72,574,"6.51","58.3",77,5,6,5,"Les Cabochons","R"]
["Jean Poulin",70,72,428,"5.12","43.1",-46,0,3,1,"Team Vegas","R"]
["Jean-Gabriel Pelletier",70,72,508,"5.97","54.2",21,3,4,3,"Les Fatiguants","R"]
["Jocelyn Cauchon",70,24,263,"3.67","20.8",-75,0,1,0,"Les Sultans","R"]
["Jocelyn Desrosiers",70,72,531,"6.13","61.1",75,3,1,3,"Les Téteux de boss","R"]
["Marc-André Giguère",70,72,447,"5.29","48.6",-26,1,1,2,"Les Téteux de boss","R"]
["Marcel Couture",70,72,452,"5.46","48.6",-23,4,2,4,"Les Vikings","R"]
["Mario Brochu",70,48,395,"4.94","33.3",-90,1,6,1,"Les Chokeux","R"]
["Mario Couture",70,72,421,"5.19","43.1",-41,4,2,4,"Les Vikings","R"]
["Martin Villeneuve",70,72,458,"5.45","50.0",1,3,1,3,"Les Bizarres","R"]
["Mathieu Marcotte",70,72,596,"6.72","63.9",142,6,3,6,"Les Pas Sortables","R"]
["Nelson Biron",70,64,464,"5.60","51.6",-4,2,2,2,"Les Chokeux","R"]
["Nicolas Girard",70,72,538,"6.22","51.4",49,6,5,6,"Les Téteux de boss","R"]
["Pierre Létourneau",70,72,394,"4.87","40.3",-100,0,5,0,"Les Sultans","R"]
["René Hamel",70,72,614,"6.90","65.3",120,8,4,8,"Les Pas Sortables","R"]
["Simon Marcotte",70,72,451,"5.36","48.6",-32,1,3,1,"Publicité Idée Concept","R"]
["Stéphane Desroches",70,72,437,"5.19","47.2",-24,1,2,1,"Cemwelnex","R"]
["Stéphane Fiset",70,72,642,"6.90","70.8",191,6,0,9,"Les Cobayes","R"]
["Alain Gilbert",80,64,435,"5.24","43.8",-44,1,3,1,"Les Vikings","R"]
["Danny Georges",80,72,482,"5.64","52.8",8,0,5,0,"Les Cabochons","R"]
["Frédéric Dubois",80,64,472,"5.55","51.6",22,3,0,3,"Les Bizarres","R"]
["James Poulin",80,56,390,"4.85","41.1",-66,1,1,2,"Les Cabochons","R"]
["Jean-Philippe Ross",80,64,379,"4.91","37.5",-105,4,3,4,"Les Fatiguants","R"]
["Jocelyn Laperrière",80,72,522,"5.96","58.3",78,2,1,2,"Publicité Idée Concept","R"]
["Martin Rousseau",80,56,497,"5.83","50.0",-11,2,5,2,"Les Chokeux","R"]
["Mathieu Barnabé",80,64,424,"5.15","45.3",-37,2,1,2,"Cemwelnex","R"]
["Pascal Gravel",80,72,494,"5.80","58.3",8,1,4,1,"Les Fatiguants","R"]
["Raymond Girard",80,72,390,"4.93","40.3",-101,1,5,1,"Team Vegas","R"]
["Robert Maheux",80,72,390,"4.82","40.3",-96,0,4,1,"Team Vegas","R"]
["Sébastien Dussault",80,72,423,"5.10","43.1",-63,1,5,1,"Les Pas Sortables","R"]
["Yohann Fecteau",80,56,342,"4.45","32.1",-123,0,5,0,"Les Bizarres","R"]
["Carl Bilodeau (St-Nic)",90,48,332,"4.35","31.3",-101,0,2,0,"Les Bizarres","R"]
["Jean-François Huard",90,64,307,"4.19","28.1",-156,1,2,1,"Cemwelnex","R"]
["Marie-Noël Naud",90,72,408,"5.10","40.3",-94,2,5,2,"Les Pas Sortables","R"]
["Stéphane Laperrière",90,72,278,"3.90","23.6",-208,0,3,0,"Publicité Idée Concept","R"]
["Stéphane Turcotte",90,72,398,"4.92","43.1",-60,1,1,1,"Les Cobayes","R"]
[]
[]
["Tous - Alpha",null,null,null,null,null,null,null,null,null,"Réguliers - Alpha"]
["Alain Gilbert",null,null,null,null,null,null,null,null,null,"Alain Gilbert"]
["André L'Hérault",null,null,null,null,null,null,null,null,null,"André L'Hérault"]
["Bernard Fiset",null,null,null,null,null,null,null,null,null,"Bernard Fiset"]
["Carl Bilodeau (St-Nic)",null,null,null,null,null,null,null,null,null,"Carl Bilodeau (St-Nic)"]
["Carl Rancourt",null,null,null,null,null,null,null,null,null,"Carl Rancourt"]
["Claude Martin",null,null,null,null,null,null,null,null,null,"Claude Martin"]
["Danny Georges",null,null,null,null,null,null,null,null,null,"Danny Georges"]
["Éric Rousseau",null,null,null,null,null,null,null,null,null,"Éric Rousseau"]
["Franck Tremblay",null,null,null,null,null,null,null,null,null,"Franck Tremblay"]
["Frédéric Dubois",null,null,null,null,null,null,null,null,null,"Frédéric Dubois"]
["Gilles Rousseau",null,null,null,null,null,null,null,null,null,"Gilles Rousseau"]
["Guy Savoie",null,null,null,null,null,null,null,null,null,"Guy Savoie"]
["James Poulin",null,null,null,null,null,null,null,null,null,"James Poulin"]
["Jean Fiset",null,null,null,null,null,null,null,null,null,"Jean Fiset"]
["Jean Morency (Tapis Vert)",null,null,null,null,null,null,null,null,null,"Jean Morency (Tapis Vert)"]
["Jean Poulin",null,null,null,null,null,null,null,null,null,"Jean Poulin"]
["Jean-François Huard",null,null,null,null,null,null,null,null,null,"Jean-François Huard"]
["Jean-Gabriel Pelletier",null,null,null,null,null,null,null,null,null,"Jean-Gabriel Pelletier"]
["Jean-Philippe Ross",null,null,null,null,null,null,null,null,null,"Jean-Philippe Ross"]
["Jocelyn Cauchon",null,null,null,null,null,null,null,null,null,"Jocelyn Cauchon"]
["Jocelyn Desrosiers",null,null,null,null,null,null,null,null,null,"Jocelyn Desrosiers"]
["Jocelyn Laperrière",null,null,null,null,null,null,null,null,null,"Jocelyn Laperrière"]
["Marc Godin",null,null,null,null,null,null,null,null,null,"Marc Godin"]
["Marc-André Giguère",null,null,null,null,null,null,null,null,null,"Marc-André Giguère"]
["Marcel Couture",null,null,null,null,null,null,null,null,null,"Marcel Couture"]
["Marie-Noël Naud",null,null,null,null,null,null,null,null,null,"Marie-Noël Naud"]
["Mario Brochu",null,null,null,null,null,null,null,null,null,"Mario Brochu"]
["Mario Couture",null,null,null,null,null,null,null,null,null,"Mario Couture"]
["Martin Rousseau",null,null,null,null,null,null,null,null,null,"Martin Rousseau"]
["Martin Villeneuve",null,null,null,null,null,null,null,null,null,"Martin Villeneuve"]
["Mathieu Barnabé",null,null,null,null,null,null,null,null,null,"Mathieu Barnabé"]
["Mathieu Marcotte",null,null,null,null,null,null,null,null,null,"Mathieu Marcotte"]
["Nelson Biron",null,null,null,null,null,null,null,null,null,"Nelson Biron"]
["Nicolas Girard",null,null,null,null,null,null,null,null,null,"Nicolas Girard"]
["Normand Paquin",null,null,null,null,null,null,null,null,null,"Normand Paquin"]
["Pascal Gravel",null,null,null,null,null,null,null,null,null,"Pascal Gravel"]
["Pierre Létourneau",null,null,null,null,null,null,null,null,null,"Pierre Létourneau"]
["Pierre-Paul Tremblay",null,null,null,null,null,null,null,null,null,"Pierre-Paul Tremblay"]
["Raymond Girard",null,null,null,null,null,null,null,null,null,"Raymond Girard"]
["René Hamel",null,null,null,null,null,null,null,null,null,"René Hamel"]
["Robert Maheux",null,null,null,null,null,null,null,null,null,"Robert Maheux"]
["Sébastien Dussault",null,null,null,null,null,null,null,null,null,"Sébastien Dussault"]
["Simon Marcotte",null,null,null,null,null,null,null,null,null,"Simon Marcotte"]
["Simon Robitaille (50)",null,null,null,null,null,null,null,null,null,"Simon Robitaille (50)"]
["Stéphane Desroches",null,null,null,null,null,null,null,null,null,"Stéphane Desroches"]
["Stéphane Fiset",null,null,null,null,null,null,null,null,null,"Stéphane Fiset"]
["Stéphane Laperrière",null,null,null,null,null,null,null,null,null,"Stéphane Laperrière"]
["Stéphane Turcotte",null,null,null,null,null,null,null,null,null,"Stéphane Turcotte"]
["Yohann Fecteau",null,null,null,null,null,null,null,null,null,"Yohann Fecteau"]